bitfinex-derivatives/quotes_BNBF0:USTF0_20230901
["timestamp","ask_amount","ask_price","bid_price","bid_amount"]
[1693588235322,0.17228053,213.8,213.25,0.8616311]
[1693588236129,0.17228053,213.8,213.24,0.8616311]
[1693588236329,5.2825491,213.8,213.25,0.8616311]
[1693588236529,0.17228053,213.79,213.24,0.8616311]
[1693588237029,5.2825491,213.79,213.24,0.93836869]
[1693588237225,0.17228053,213.78,213.25,0.8616311]
[1693588238029,0.17228053,213.78,213.22,0.07673759]
[1693588238229,0.17228053,213.78,213.23,0.86159862]
[1693588238429,5.11026857,213.77,213.23,0.93833621]
[1693588238628,0.17228053,213.76,213.24,0.86159862]
[1693588239330,0.17228053,213.76,213.22,0.07673759]
[1693588239530,0.17228053,213.76,213.23,0.86162023]
[1693588239831,0.17228053,213.76,213.23,0.93835782]
[1693588240031,0.17228053,213.76,213.23,0.07673759]
[1693588240330,5.11026857,213.74,213.24,0.07673759]
[1693588240532,0.17228053,213.73,213.24,0.07673759]
[1693588240933,0.17228053,213.73,213.23,0.07673759]
[1693588241835,0.17228053,213.73,213.22,0.07673759]
[1693588242035,0.17228053,213.73,213.21,0.07673759]
[1693588242329,0.17228053,213.73,213.22,0.86163347]
[1693588242533,5.2825491,213.73,213.22,0.86163347]
[1693588242733,0.17228053,213.72,213.22,0.86163347]
[1693588243128,0.17228053,213.72,213.22,0.93837106]
[1693588243332,0.17228053,213.71,213.23,0.86163347]
[1693588243534,0.17228053,213.7,213.23,0.86163347]
[1693588243832,0.17228053,213.69,213.23,0.86163347]
[1693588244034,0.17228053,213.73,213.23,0.86163347]
[1693588244233,0.17228053,213.72,213.23,0.86163347]
[1693588244533,0.17228053,213.71,213.23,0.86163347]
[1693588244734,0.17228053,213.73,213.23,0.86163347]
[1693588244935,0.17228053,213.7,213.23,0.86163347]
[1693588245129,0.17228053,213.69,213.23,0.86163347]
[1693588245336,0.17228053,213.73,213.23,0.86163347]
[1693588245536,0.17228053,213.72,213.23,0.86163347]
[1693588245735,0.17228053,213.73,213.23,0.86163347]
[1693588246036,0.17228053,213.72,213.23,0.86163347]
[1693588246237,0.17228053,213.73,213.22,0.07673759]
[1693588246436,0.17228053,213.73,213.21,0.07673759]
[1693588246638,0.17228053,213.73,213.22,0.86165995]
[1693588246845,5.11026857,213.72,213.21,0.86165995]
[1693588247138,0.17228053,213.71,213.22,0.86167508]
[1693588247338,0.17228053,213.71,213.21,0.86167508]
[1693588247931,0.17228053,213.71,213.2,0.07673759]
[1693588248136,0.17228053,213.71,212.98,3.75169215]
[1693588248137,0.17228053,213.71,213.15,0.07673759]
[1693588248335,0.17228053,213.71,213.16,0.86191898]
[1693588248537,0.17228053,213.71,213.14,0.86191898]
[1693588248739,0.17228053,213.71,213.13,0.07673759]
[1693588248935,0.17228053,213.71,213.12,0.07673759]
[1693588249134,5.11026857,213.68,213.15,0.86195121]
[1693588249442,5.11026857,213.68,213.13,0.86195121]
[1693588249642,0.17228053,213.67,213.12,0.07673759]
[1693588249837,0.17228053,213.67,213.13,0.86196485]
[1693588250236,0.17228053,213.67,213.13,0.93870244]
[1693588250639,0.17228053,213.66,213.14,0.86196485]
[1693588250842,0.17228053,213.69,213.14,0.86196485]
[1693588251035,0.17228053,213.69,213.12,0.07673759]
[1693588251036,0.17228053,213.68,213.13,0.86196485]
[1693588251236,5.11026857,213.7,213.14,0.86196485]
[1693588251237,0.17228053,213.69,213.14,0.86196485]
[1693588251436,0.17228053,213.68,213.13,0.93870244]
[1693588251636,0.17228053,213.69,213.14,0.86196485]
[1693588251839,5.11026857,213.68,213.14,0.86196485]
[1693588252040,0.17228053,213.67,213.14,0.93870244]
[1693588252237,0.17228053,213.67,213.15,0.86196485]
[1693588252440,0.17228053,213.68,213.15,0.86196485]
[1693588252640,0.17228053,213.67,213.15,0.86196485]
[1693588252841,0.17228053,213.7,213.15,0.86196485]
[1693588253040,12.26464458,213.71,213.15,0.86196485]
[1693588253041,0.17228053,213.69,213.15,0.86196485]
[1693588253238,0.17228053,213.7,213.15,0.86196485]
[1693588253440,0.17228053,213.69,213.15,0.86196485]
[1693588253644,0.17228053,213.7,213.15,0.86196485]
[1693588253844,0.17228053,213.69,213.15,0.86196485]
[1693588254043,0.17228053,213.7,213.15,0.86196485]
[1693588254244,0.17228053,213.69,213.15,0.86196485]
[1693588254541,0.17228053,213.68,213.18,0.07673759]
[1693588254740,0.17228053,213.73,213.19,0.86196485]
[1693588254945,0.17228053,213.72,213.19,0.93870244]
[1693588255144,0.17228053,213.74,213.2,0.86196485]
[1693588255345,0.17228053,213.73,213.2,0.86196485]
[1693588255545,0.17228053,213.74,213.2,0.86196485]
[1693588255745,0.17228053,213.73,213.2,0.86196485]
[1693588255946,0.17228053,213.74,213.2,0.86196485]
[1693588256246,0.17228053,213.74,213.2,0.93870244]
[1693588256446,0.17228053,213.75,213.21,0.86196485]
[1693588256640,0.17228053,213.74,213.2,0.86196485]
[1693588256840,0.17228053,213.75,213.21,0.86196485]
[1693588257046,0.17228053,213.75,213.22,0.86196485]
[1693588257243,0.17228053,213.75,213.23,0.86196485]
[1693588257441,0.17228053,213.75,213.2,0.07673759]
[1693588257643,0.17228053,213.75,213.21,0.86163328]
[1693588257948,5.2825491,213.75,213.21,0.86163328]
[1693588258143,0.17228053,213.74,213.21,0.86163328]
[1693588259347,0.17228053,213.74,213.22,0.86163328]
[1693588259648,0.17228053,213.74,213.23,0.86163328]
[1693588259850,0.17228053,213.74,213.21,0.86163328]
[1693588260051,0.17228053,213.74,213.22,0.8616254]
[1693588260247,0.17228053,213.74,213.21,0.8616254]
[1693588260447,5.2825491,213.74,213.21,0.8616254]
[1693588260646,0.17228053,213.73,213.21,0.8616254]
[1693588262149,0.17228053,213.73,213.2,0.8616254]
[1693588262348,0.17228053,213.73,213.21,0.8616254]
[1693588262550,0.17228053,213.73,213.2,0.93836299]
[1693588262751,0.17228053,213.74,213.21,0.8616254]
[1693588263351,5.2825491,213.74,213.21,0.8616254]
[1693588263550,0.17228053,213.73,213.2,0.8616254]
[1693588264850,0.17228053,213.73,213.19,0.8616254]
[1693588265054,0.17228053,213.73,213.2,0.8616254]
[1693588265252,0.17228053,213.73,213.19,0.8616254]
[1693588265452,5.2825491,213.73,213.19,0.8616254]
[1693588265652,0.17228053,213.72,213.19,0.8616254]
[1693588265953,0.17228053,213.72,213.19,0.93836299]
[1693588266154,0.17228053,213.73,213.2,0.8616254]
[1693588267352,0.17228053,213.73,213.19,0.8616254]
[1693588267549,5.2825491,213.73,213.2,0.8616254]
[1693588267756,0.17228053,213.72,213.19,0.93836299]
[1693588267954,0.17228053,213.72,213.2,0.8616254]
[1693588274461,0.17228053,213.72,213.2,0.93836299]
[1693588274656,0.17228053,213.72,213.21,0.93836299]
[1693588274858,0.17228053,213.71,213.22,0.8616254]
[1693588275058,0.17228053,213.7,213.23,0.8616254]
[1693588275257,0.17228053,213.73,213.21,0.8616254]
[1693588275462,0.17228053,213.72,213.22,0.86161598]
[1693588275662,0.17228053,213.73,213.21,0.86161598]
[1693588275964,0.17228053,213.72,213.22,0.86161598]
[1693588276165,5.11026857,213.72,213.2,0.86161598]
[1693588276360,0.17228053,213.71,213.2,0.86161598]
[1693588277358,0.17228053,213.71,213.21,0.86161598]
[1693588277565,0.17228053,213.71,213.19,0.86161598]
[1693588277866,0.17228053,213.71,213.2,0.86161598]
[1693588278063,0.17228053,213.71,213.18,0.07673759]
[1693588278064,0.17228053,213.71,213.19,0.86161598]
[1693588278369,5.2825491,213.71,213.19,0.86161598]
[1693588278664,5.2825491,213.7,213.2,0.86161598]
[1693588278865,0.17228053,213.69,213.18,0.93835357]
[1693588279061,0.17228053,213.69,213.19,0.86161598]
[1693588280565,5.2825491,213.7,213.19,0.86161598]
[1693588280771,0.17228053,213.69,213.19,0.86161598]
[1693588284074,0.17228053,213.69,213.19,0.93835357]
[1693588284264,0.17228053,213.69,213.2,0.86161598]
[1693588284464,0.17228053,213.69,213.19,0.93835357]
[1693588284665,0.17228053,213.69,213.2,0.86161598]
[1693588285469,5.2825491,213.69,213.2,0.93835357]
[1693588285670,0.17228053,213.68,213.21,0.86161598]
[1693588286472,0.17228053,213.68,213.22,0.86161598]
[1693588286771,5.2825491,213.68,213.19,0.07673759]
[1693588286972,0.17228053,213.67,213.2,0.86162702]
[1693588287571,5.2825491,213.67,213.21,0.07673759]
[1693588287767,0.17228053,213.66,213.22,0.86162702]
[1693588288076,0.17228053,213.66,213.2,0.07673759]
[1693588288268,0.17228053,213.66,213.23,0.07673759]
[1693588289072,5.11026857,213.64,213.23,0.07673759]
[1693588289270,0.17228053,213.63,213.23,0.07673759]
[1693588289870,0.17228053,213.63,213.22,0.07673759]
[1693588290370,0.17228053,213.63,213.23,0.07673759]
[1693588290970,5.2825491,213.63,213.23,0.07673759]
[1693588291171,0.17228053,213.62,213.22,0.07673759]
[1693588292570,0.17228053,213.62,213.23,0.07673759]
[1693588292776,0.17228053,213.62,213.22,0.07673759]
[1693588294271,0.17228053,213.62,213.23,0.07673759]
[1693588294474,0.17228053,213.62,213.22,0.07673759]
[1693588295373,0.17228053,213.62,213.23,0.07673759]
[1693588295574,0.17228053,213.62,213.22,0.07673759]
[1693588296576,5.2825491,213.62,213.21,0.07673759]
[1693588296772,0.17228053,213.61,213.21,0.07673759]
[1693588297782,0.17228053,213.61,213.17,0.07673759]
[1693588298580,0.17228053,213.61,213.15,0.07673759]
[1693588298781,0.17228053,213.61,213.16,0.86191364]
[1693588298980,5.11026857,213.6,213.16,0.86191364]
[1693588299183,0.17228053,213.59,213.16,0.86191364]
[1693588300681,0.17228053,213.59,213.13,0.07673759]
[1693588300883,0.17228053,213.59,213.14,0.86195745]
[1693588301884,0.17228053,213.59,213.13,0.86195745]
[1693588302084,0.17228053,213.61,213.14,0.86195903]
[1693588302284,0.17228053,213.6,213.13,0.86195903]
[1693588302482,0.17228053,213.59,213.13,0.86195903]
[1693588302681,0.17228053,213.58,213.14,0.86195903]
[1693588302876,0.17228053,213.57,213.11,0.07673759]
[1693588303082,0.17228053,213.56,213.12,0.86195613]
[1693588303280,0.17228053,213.55,213.12,0.86195613]
[1693588303482,0.17228053,213.54,213.12,0.86195613]
[1693588303682,0.17228053,213.53,213.12,0.86195613]
[1693588303882,0.17228053,213.52,213.12,0.86195613]
[1693588304081,0.17228053,213.51,213.13,0.86195613]
[1693588304283,0.17228053,213.5,213.14,0.86195613]
[1693588304480,0.17228053,213.49,213.1,0.07673759]
[1693588304680,0.17228053,213.48,213.11,0.86195809]
[1693588304983,0.17228053,213.47,213.11,0.86195809]
[1693588305183,0.17228053,213.46,213.11,0.86195809]
[1693588305384,5.11026857,213.63,213.11,0.93869568]
[1693588305585,0.17239089,213.62,213.12,0.86195809]
[1693588305786,0.17239089,213.61,213.13,0.86195809]
[1693588305987,0.17239089,213.6,213.14,0.86195809]
[1693588306187,0.17239089,213.59,213.1,0.07673759]
[1693588306386,0.17239089,213.58,213.11,0.86195995]
[1693588306587,0.17239089,213.57,213.11,0.86195995]
[1693588306787,0.17239089,213.56,213.11,0.86195995]
[1693588306989,0.17239089,213.55,213.11,0.86195995]
[1693588307183,0.17239089,213.54,213.11,0.86195995]
[1693588307384,0.17239089,213.53,213.11,0.86195995]
[1693588307589,0.17239089,213.52,213.11,0.86195995]
[1693588307788,0.17239089,213.51,213.12,0.86195995]
[1693588307989,0.17239089,213.5,213.13,0.86195995]
[1693588308292,0.17239089,213.49,213.14,0.86195995]
[1693588308482,0.17239089,213.48,213.09,0.07673759]
[1693588308685,0.17239089,213.47,213.1,0.86198199]
[1693588308886,0.17239089,213.64,213.1,0.86198199]
[1693588309087,0.17239089,213.63,213.1,0.86198199]
[1693588309391,0.17239089,213.62,213.1,0.93871958]
[1693588309586,0.17239089,213.65,213.11,0.86198199]
[1693588309788,0.17239089,213.64,213.11,0.86198199]
[1693588309985,0.17239089,213.65,213.1,0.86198199]
[1693588310190,0.17239089,213.64,213.11,0.86198199]
[1693588310386,0.17239089,213.65,213.1,0.86198199]
[1693588310591,0.17239089,213.64,213.11,0.86198199]
[1693588310792,5.11026857,213.64,213.09,0.86198199]
[1693588310988,0.17239089,213.63,213.1,0.86198199]
[1693588311189,0.17239089,213.64,213.09,0.86198199]
[1693588311486,0.17239089,213.63,213.1,0.86198199]
[1693588311689,0.17239089,213.64,213.02,0.07673759]
[1693588311891,0.17239089,213.63,213.03,0.86224591]
[1693588312089,0.17239089,213.62,213.03,0.86224591]
[1693588312392,5.28265946,213.61,213.03,0.86224591]
[1693588312592,0.17239089,213.6,213.02,0.86224591]
[1693588312793,0.17239089,213.6,213.04,0.86224591]
[1693588312990,0.17239089,213.6,213.05,0.86224591]
[1693588313193,0.17239089,213.6,213.01,0.07673759]
[1693588313194,0.17239089,213.6,213.06,0.86224591]
[1693588313393,0.17239089,213.6,213.02,0.86224591]
[1693588313590,0.17239089,213.6,213.07,0.86224591]
[1693588313792,0.17239089,213.6,213.01,0.07673759]
[1693588313793,0.17239089,213.63,213.03,0.86224591]
[1693588313994,0.17239089,213.59,213.04,0.86224591]
[1693588314193,0.17239089,213.58,213.02,0.86224591]
[1693588314394,0.17239089,213.63,213.02,0.86224591]
[1693588314792,0.17239089,213.63,213.03,0.86224591]
[1693588315095,0.17239089,213.63,213.04,0.86224591]
[1693588315297,0.17239089,213.63,213.05,0.86224591]
[1693588315595,0.17239089,213.63,213.06,0.86224591]
[1693588315797,0.17239089,213.63,213.0,0.86224591]
[1693588315989,0.17239089,213.64,213.01,0.86224591]
[1693588316190,5.11026857,213.65,213.0,0.86224591]
[1693588316191,0.17239089,213.63,213.0,0.86224591]
[1693588316392,0.17239089,213.64,213.01,0.86224591]
[1693588316690,0.17239089,213.63,213.02,0.86224591]
[1693588316896,0.17239089,213.66,213.0,0.86224591]
[1693588317092,0.17239089,213.65,213.01,0.86224591]
[1693588317293,0.17239089,213.66,213.0,0.86224591]
[1693588317494,0.17239089,213.65,213.01,0.86224591]
[1693588317695,0.17239089,213.67,213.0,0.86224591]
[1693588317895,0.17239089,213.66,213.01,0.86224591]
[1693588318098,0.17239089,213.67,213.0,0.86224591]
[1693588318395,0.17239089,213.66,213.01,0.86224591]
[1693588318697,0.17239089,213.65,213.02,0.86224591]
[1693588318892,5.11026857,213.68,213.0,0.86224591]
[1693588318893,0.17239089,213.67,213.0,0.86224591]
[1693588319098,0.17239089,213.64,213.03,0.86224591]
[1693588319300,0.17239089,213.66,213.01,0.86224591]
[1693588319497,0.17239089,213.63,213.01,0.86224591]
[1693588319697,0.17239089,213.65,213.02,0.86224591]
[1693588319995,0.17239089,213.64,212.99,0.86224591]
[1693588320199,0.17239089,213.64,213.03,0.86224591]
[1693588320494,0.17239089,213.68,213.0,0.9389835]
[1693588320697,0.17239089,213.63,213.01,0.86224591]
[1693588321099,0.17239089,213.67,213.0,0.86224591]
[1693588321398,0.17239089,213.66,213.01,0.86224591]
[1693588321597,0.17239089,213.69,213.01,0.86224591]
[1693588321795,5.28265946,213.69,213.01,0.86224591]
[1693588321996,0.17239089,213.68,213.01,0.86224591]
[1693588322199,0.17239089,213.68,213.02,0.07673759]
[1693588322398,7.15437601,213.75,213.05,0.07673759]
[1693588322399,0.17239089,213.71,213.05,0.07673759]
[1693588322597,0.17239089,213.7,213.06,0.86224591]
[1693588322791,5.28265946,213.73,213.06,0.86224591]
[1693588322995,0.17239089,213.72,213.05,0.86055963]
[1693588323197,0.17239089,213.72,213.06,0.86055963]
[1693588323393,0.17239089,213.73,213.06,0.93729722]
[1693588323596,0.17239089,213.71,213.06,0.93729722]
[1693588323800,0.17239089,213.7,213.07,0.86055963]
[1693588324099,0.17239089,213.73,213.07,0.86055963]
[1693588324300,0.17239089,213.69,213.07,0.86055963]
[1693588324502,0.17239089,213.72,213.07,0.86055963]
[1693588324802,0.17239089,213.71,213.07,0.93729722]
[1693588325103,0.17239089,213.7,213.08,0.86055963]
[1693588325304,0.17239089,213.69,213.08,0.86055963]
[1693588325503,0.17239089,213.73,213.08,0.86055963]
[1693588325701,0.17239089,213.72,213.09,0.07673759]
[1693588325901,0.17239089,213.73,213.1,0.86055963]
[1693588326201,0.17239089,213.72,213.1,0.86055963]
[1693588326402,5.28265946,213.73,213.1,0.86055963]
[1693588326602,0.17239089,213.72,213.09,0.86055963]
[1693588326803,0.17239089,213.72,213.1,0.86055963]
[1693588327004,0.17239089,213.72,213.09,0.86055963]
[1693588327206,0.17239089,213.72,213.1,0.86055963]
[1693588327399,0.17239089,213.72,213.09,0.86055963]
[1693588327700,0.17239089,213.72,213.09,0.93729722]
[1693588327905,0.17239089,213.72,213.1,0.86055963]
[1693588328498,0.17239089,213.72,213.1,0.93729722]
[1693588328702,0.17239089,213.72,213.11,0.86055963]
[1693588329505,0.17239089,213.72,213.11,0.93729722]
[1693588329701,5.11026857,213.7,213.12,0.86055963]
[1693588329901,0.17239089,213.69,213.12,0.86055963]
[1693588331001,0.17239089,213.69,213.11,0.86055963]
[1693588331205,0.17239089,213.69,213.12,0.86211105]
[1693588331406,0.17239089,213.69,213.1,0.86211105]
[1693588331608,5.11026857,213.67,213.11,0.93882971]
[1693588331807,0.17239089,213.66,213.12,0.86209212]
[1693588332202,0.17239089,213.67,213.12,0.86209212]
[1693588332402,0.17239089,213.66,213.11,0.86209212]
[1693588332607,0.17239089,213.67,213.12,0.86209983]
[1693588332807,0.17239089,213.66,213.11,0.93883742]
[1693588333004,0.17239089,213.67,213.12,0.86209987]
[1693588333204,0.17239089,213.66,213.12,0.86209987]
[1693588333405,5.28265946,213.67,213.12,0.86209987]
[1693588333606,0.17239089,213.66,213.12,0.93883746]
[1693588333806,0.17239089,213.67,213.13,0.86209987]
[1693588334109,0.17239089,213.66,213.13,0.86209987]
[1693588334309,0.17239089,213.67,213.13,0.86209987]
[1693588334508,0.17239089,213.66,213.13,0.86209987]
[1693588334709,0.17239089,213.67,213.13,0.86209987]
[1693588334910,0.17239089,213.66,213.11,0.07673759]
[1693588335104,0.17239089,213.67,213.12,0.86210621]
[1693588335304,0.17239089,213.66,213.11,0.9388438]
[1693588335506,0.17239089,213.67,213.1,0.07673759]
[1693588335705,0.17239089,213.66,213.05,0.07673759]
[1693588335906,5.11026857,213.6,213.04,0.07673759]
[1693588336206,0.17239089,213.59,213.05,0.86238265]
[1693588338606,0.17239089,213.6,213.04,0.93912024]
[1693588338809,0.17239089,213.59,213.05,0.86239345]
[1693588339011,0.17239089,213.6,213.04,0.86239345]
[1693588339314,0.17239089,213.59,213.05,0.86239024]
[1693588339613,0.17239089,213.58,213.03,0.07673759]
[1693588339810,0.17239089,213.6,213.04,0.86239707]
[1693588340010,0.17239089,213.59,213.04,0.86239707]
[1693588340211,0.17239089,213.6,213.04,0.86239707]
[1693588340406,0.17239089,213.59,213.04,0.86239707]
[1693588340608,5.11026857,213.61,213.04,0.93913466]
[1693588340609,0.17239089,213.6,213.04,0.93913466]
[1693588340807,0.17239089,213.59,213.05,0.86239707]
[1693588341012,0.17239089,213.61,213.05,0.86239707]
[1693588341309,0.17239089,213.6,213.05,0.86239707]
[1693588341514,0.17239089,213.59,213.05,0.86239707]
[1693588341814,0.17239089,213.58,213.05,0.86239707]
[1693588342016,0.17239089,213.61,213.05,0.86239707]
[1693588342212,0.17239089,213.6,213.05,0.86239707]
[1693588342408,0.17239089,213.61,213.05,0.86239707]
[1693588343113,5.28265946,213.61,213.05,0.86239707]
[1693588343309,0.17239089,213.6,213.04,0.86239707]
[1693588343514,0.17239089,213.6,213.03,0.07673759]
[1693588343817,0.17239089,213.6,213.04,0.86243448]
[1693588344112,0.17239089,213.6,213.03,0.07673759]
[1693588344313,0.17239089,213.6,213.04,0.86243001]
[1693588345016,0.17239089,213.6,213.03,0.07673759]
[1693588345209,0.17239089,213.6,213.02,0.07673759]
[1693588345414,0.17239089,213.6,212.96,0.07673759]
[1693588345714,0.17239089,213.6,212.97,0.8627388]
[1693588345909,5.11026857,213.53,212.97,0.8627388]
[1693588346108,0.17239089,213.52,212.96,0.07673759]
[1693588346315,0.17239089,213.52,212.94,0.07673759]
[1693588346508,0.17239089,213.52,212.9,0.07673759]
[1693588346713,7.15437601,213.5,212.89,0.07673759]
[1693588347014,7.15437601,213.5,212.77,0.07673759]
[1693588347212,7.15437601,213.5,212.8,0.07673759]
[1693588347213,0.17239089,213.49,212.8,0.07673759]
[1693588347413,5.11026857,213.48,212.79,0.07673759]
[1693588347613,0.17239089,213.49,212.83,0.07673759]
[1693588347815,0.17239089,213.47,212.83,0.07673759]
[1693588348117,0.17239089,213.46,212.85,0.07673759]
[1693588348318,0.17239089,213.52,212.85,0.07673759]
[1693588348613,0.17239089,213.45,212.86,0.86300289]
[1693588348815,0.17239089,213.51,212.86,0.86300289]
[1693588349015,0.17239089,213.5,212.86,0.86300289]
[1693588349412,0.17239089,213.49,212.86,0.86300289]
[1693588349618,0.17239089,213.49,212.87,0.86300289]
[1693588349813,5.11026857,213.58,212.85,0.86300289]
[1693588349814,0.17239089,213.56,212.85,0.86300289]
[1693588350018,0.17239089,213.48,212.85,0.86300289]
[1693588350215,0.17239089,213.55,212.86,0.86300289]
[1693588350421,0.17239089,213.54,212.88,0.07673759]
[1693588350616,0.17239089,213.54,212.86,0.86300289]
[1693588350617,0.17239089,213.54,212.89,0.07673759]
[1693588350820,0.17239089,213.61,212.89,0.07673759]
[1693588351023,0.17239089,213.61,212.9,0.86300289]
[1693588351219,0.17239089,213.63,212.9,0.86300289]
[1693588351415,0.17239089,213.6,212.9,0.86300289]
[1693588351719,0.17239089,213.59,212.9,0.86300289]
[1693588351919,7.15437601,213.63,212.86,0.86300289]
[1693588352122,0.17239089,213.62,212.85,0.86300289]
[1693588352320,0.17239089,213.62,212.86,0.86300289]
[1693588352915,5.28265946,213.62,212.85,0.86300289]
[1693588353120,0.17239089,213.61,212.86,0.86300289]
[1693588353321,0.17239089,213.61,212.85,0.86300289]
[1693588353515,0.17239089,213.61,212.86,0.86300289]
[1693588353714,0.17239089,213.61,212.85,0.86300289]
[1693588353917,0.17239089,213.61,212.86,0.86300289]
[1693588354117,0.17239089,213.61,212.84,0.86300289]
[1693588354822,0.17239089,213.63,212.84,0.86300289]
[1693588355013,0.17239089,213.62,212.84,0.86300289]
[1693588355218,0.17239089,213.63,212.84,0.86300289]
[1693588355413,0.17239089,213.62,212.84,0.86300289]
[1693588355615,0.17239089,213.63,212.84,0.86300289]
[1693588355823,0.17239089,213.62,212.86,0.07673759]
[1693588356117,0.17239089,213.61,212.87,0.93974048]
[1693588356319,0.17239089,213.68,212.88,4.61890759]
[1693588356521,0.17239089,213.67,212.88,0.86300289]
[1693588356721,0.17239089,213.67,212.89,0.86300289]
[1693588357017,0.17239089,213.66,212.89,0.93974048]
[1693588357222,0.17239089,213.69,212.89,3.7559047]
[1693588357422,5.11026857,213.7,212.9,0.86300289]
[1693588357423,0.17239089,213.65,212.9,0.86300289]
[1693588357624,0.17239089,213.64,212.88,0.86300289]
[1693588357824,0.17239089,213.69,212.87,0.07673759]
[1693588358026,0.17239089,213.69,212.88,0.86300289]
[1693588358225,5.11026857,213.68,212.88,0.86300289]
[1693588358426,0.17239089,213.67,212.88,0.86300289]
[1693588358725,7.15437601,213.66,212.89,0.86300289]
[1693588358920,0.17239089,213.65,212.9,0.86300289]
[1693588359126,0.17239089,213.65,212.82,4.61808123]
[1693588359426,0.17239089,213.65,212.83,4.61808123]
[1693588359625,0.17239089,213.65,206.67,4.69596664]
[1693588359626,0.17239089,213.65,212.82,0.86300289]
[1693588359829,5.02051296,213.64,212.83,0.86300289]
[1693588360027,0.17239089,213.63,212.83,0.86300289]
[1693588361527,0.17239089,213.63,212.82,0.86300289]
[1693588361729,0.17239089,213.63,212.83,0.86300289]
[1693588362029,0.17239089,213.63,212.84,0.86300289]
[1693588362228,5.02051296,213.57,212.85,0.86300289]
[1693588362429,0.17239089,213.56,212.77,0.86300289]
[1693588362630,0.17239089,213.56,212.78,0.86300289]
[1693588362929,0.17239089,213.56,212.79,0.86300289]
[1693588363131,0.17239089,213.56,212.8,0.86300289]
[1693588363431,0.17239089,213.56,212.81,0.86300289]
[1693588363625,0.17239089,213.56,212.76,0.93914439]
[1693588363822,5.02051296,213.55,212.77,0.86300289]
[1693588364027,0.17239089,213.54,212.77,0.86300289]
[1693588365535,0.17239089,213.54,212.78,0.86300289]
[1693588365732,5.02051296,213.53,212.74,0.86300289]
[1693588365929,0.17239089,213.52,212.75,0.86300289]
[1693588366133,0.17239089,213.52,212.74,0.86300289]
[1693588366331,0.17239089,213.52,212.75,0.93914439]
[1693588366634,0.17239089,213.51,212.76,0.93914439]
[1693588366829,0.17239089,213.54,212.77,0.86300289]
[1693588367032,0.17239089,213.55,212.76,0.86300289]
[1693588367729,0.17239089,213.55,212.76,0.93914439]
[1693588368133,0.17239089,213.55,212.77,0.93914439]
[1693588368429,0.17239089,213.55,212.78,0.93914439]
[1693588368729,0.17239089,213.55,212.79,0.86300289]
[1693588368937,0.17239089,213.55,212.76,0.86300289]
[1693588369635,0.17239089,213.55,212.77,0.0761415]
[1693588369835,5.02051296,213.53,212.76,0.0761415]
[1693588370037,0.17239089,213.52,212.77,0.86300289]
[1693588370338,0.17239089,213.52,212.77,0.93914439]
[1693588370538,0.17239089,213.52,212.78,0.86300289]
[1693588370735,0.17239089,213.52,212.81,0.0761415]
[1693588370936,0.17239089,213.56,212.83,0.0761415]
[1693588371135,0.17239089,213.51,212.83,0.0761415]
[1693588371332,0.17239089,213.55,212.84,0.86300289]
[1693588371632,0.17239089,213.54,212.84,0.86300289]
[1693588371831,0.17239089,213.58,212.84,0.86300289]
[1693588372031,0.17239089,213.57,212.84,0.93914439]
[1693588372229,0.17239089,213.56,212.85,0.86300289]
[1693588372434,0.17239089,213.58,212.85,0.86300289]
[1693588372737,0.17239089,213.57,212.85,0.86300289]
[1693588373037,0.17239089,213.57,212.85,0.93914439]
[1693588373232,0.17239089,213.57,212.86,0.86300289]
[1693588373438,0.17239089,213.57,212.86,0.93914439]
[1693588373637,0.17239089,213.56,212.87,0.86300289]
[1693588373833,5.19290385,213.58,212.87,0.93914439]
[1693588374039,0.17239089,213.57,212.88,0.86300289]
[1693588374539,0.17239089,213.57,212.87,0.93914439]
[1693588374739,0.17239089,213.57,212.8,0.152283]
[1693588374740,0.17239089,213.57,212.88,0.86300289]
[1693588374941,0.17239089,213.57,212.87,0.86300289]
[1693588375339,0.17239089,213.57,212.87,0.93914439]
[1693588375541,0.17239089,213.57,212.88,0.86300289]
[1693588375742,0.17239089,213.58,212.93,0.0761415]
[1693588375937,0.17239089,213.57,212.94,0.86300289]
[1693588376133,0.17239089,213.61,212.94,0.86300289]
[1693588376837,0.17239089,213.6,212.95,0.0761415]
[1693588377050,0.17239089,213.6,212.96,0.86300289]
[1693588377746,0.17239089,213.6,212.9,0.0761415]
[1693588377941,0.17239089,213.6,212.91,0.86287923]
[1693588378137,5.02051296,213.56,212.92,0.86287923]
[1693588378339,0.17239089,213.55,212.9,0.93902073]
[1693588378538,0.17239089,213.55,212.91,0.86287923]
[1693588378737,5.19290385,213.55,212.91,0.93902073]
[1693588379040,0.17239089,213.54,212.92,0.86287923]
[1693588379744,0.17239089,213.54,212.93,0.0761415]
[1693588379943,0.17239089,213.54,212.94,0.86287923]
[1693588380138,5.02051296,213.53,212.94,0.86287923]
[1693588380443,0.17239089,213.52,212.94,0.86287923]
[1693588380942,0.17239089,213.52,212.93,0.86287923]
[1693588381746,5.19290385,213.52,212.93,0.86287923]
[1693588381941,0.17239089,213.51,212.93,0.86287923]
[1693588382643,0.17239089,213.52,212.93,0.93902073]
[1693588382848,0.17239089,213.52,212.94,0.86287923]
[1693588383244,0.17239089,213.52,212.93,0.86287923]
[1693588383445,0.17239089,213.52,212.94,0.86289866]
[1693588383643,0.17239089,213.52,212.93,0.86289866]